bitfinex-derivatives/quotes_SOLF0:USTF0_20220109
["timestamp","ask_amount","ask_price","bid_price","bid_amount"]
[1641690963183,6.99202909,143.08,143.04,4.0]
[1641690963383,6.99202909,143.08,143.05,4.0]
[1641690963586,6.99202909,143.08,143.04,6.63805806]
[1641690963985,6.99202909,143.08,143.04,2.63805806]
[1641690964587,27.66479,143.07,143.01,29.19244504]
[1641690964788,6.99202909,143.08,143.01,25.19244504]
[1641690964987,6.99202909,143.08,143.04,4.0]
[1641690965188,6.99202909,143.08,143.01,25.19244504]
[1641690965388,6.99202909,143.08,143.04,4.0]
[1641690966190,6.99202909,143.08,143.0,42.48620445]
[1641690966390,6.99202909,143.08,143.03,4.0]
[1641690966591,6.99202909,143.08,143.0,42.48620445]
[1641690966790,6.99202909,143.08,143.03,4.0]
[1641690967290,6.99202909,143.08,143.04,4.0]
[1641690969295,6.99202909,143.08,143.07,4.0]
[1641690969496,6.99202909,143.08,143.01,4.0]
[1641690969696,6.99202909,143.08,143.06,4.0]
[1641690969896,6.99202909,143.08,143.04,4.0]
[1641690970800,6.99202909,143.08,143.0,134.34779445]
[1641690970999,6.99202909,143.08,143.04,4.0]
[1641690971200,6.99202909,143.08,143.01,29.16737571]
[1641690971399,12.34202909,143.08,143.05,4.0]
[1641690971601,12.34202909,143.08,143.01,25.16737571]
[1641690971999,6.99447437,143.03,143.02,2.64845215]
[1641690972200,12.95247437,143.03,143.02,2.64845215]
[1641690972600,68.28205437,143.03,143.02,2.64845215]
[1641690972999,68.28205437,143.03,142.97,6.64845215]
[1641690973699,68.28205437,143.03,142.97,2.64845215]
[1641690974099,68.28205437,143.03,142.96,4.0]
[1641690974299,68.28205437,143.03,142.97,4.0]
[1641690974699,27.66479,142.98,142.97,4.0]
[1641690974899,27.66479,142.98,142.93,25.17124701]
[1641690974900,36.48879,142.98,142.93,25.17124701]
[1641690975100,36.48879,142.98,142.92,42.48620445]
[1641690975299,36.48879,142.98,142.95,4.0]
[1641690976202,36.48879,142.98,142.96,2.65053325]
[1641690977300,8.824,142.98,142.96,2.65053325]
[1641690978602,8.824,142.98,142.96,6.65053325]
[1641690978805,6.99447437,143.03,142.97,4.0]
[1641690979203,6.99447437,143.03,142.99,4.0]
[1641690979404,6.99447437,143.03,142.93,25.17808111]
[1641690979803,6.99447437,143.03,142.99,4.0]
[1641690980106,6.99447437,143.03,142.93,25.17808111]
[1641690980317,13.17747437,143.03,143.0,4.0]
[1641690980704,13.17747437,143.03,142.97,4.0]
[1641690981907,13.17747437,143.03,142.95,14.82141445]
[1641690982306,13.17747437,143.03,142.98,2.65177335]
[1641690982708,27.66479,143.01,142.98,2.65177335]
[1641690983309,27.66479,143.01,142.95,2.65177335]
[1641690984010,27.66479,143.01,142.93,17.4731878]
[1641690984210,27.66479,143.01,142.95,4.0]
[1641690984812,27.66479,143.01,142.96,2.65177335]
[1641690986413,27.66479,143.01,142.94,4.0]
[1641690986614,6.99716615,142.98,142.93,17.4731878]
[1641690986811,14.84316615,142.98,142.95,4.0]
[1641690987011,14.84316615,142.98,142.93,17.4731878]
[1641690987212,14.84316615,142.98,142.93,6.65177335]
[1641690987412,14.84316615,142.98,142.93,2.65177335]
[1641690987612,14.84316615,142.98,142.93,6.65177335]
[1641690987913,14.84316615,142.98,142.93,2.65177335]
[1641690988114,14.84316615,142.98,142.96,4.0]
[1641690988314,12.99545296,143.01,142.96,4.0]
[1641690988713,6.0,143.01,142.97,4.0]
[1641690988917,6.0,143.01,142.98,4.0]
[1641690989115,6.0,143.01,142.97,2.65177335]
[1641690989716,6.0,143.01,142.98,4.0]
[1641690989917,6.0,143.01,142.96,18.82141445]
[1641690990317,6.0,143.01,142.96,14.82141445]
[1641690990719,6.0,143.01,142.98,27.66479]
[1641690991318,6.0,143.01,142.99,2.65177335]
[1641690992120,6.0,143.01,142.96,14.82141445]
[1641690992319,12.99545296,143.01,142.97,4.0]
[1641690992519,12.99545296,143.01,142.96,18.82141445]
[1641690992721,19.94545296,143.01,142.96,18.82141445]
[1641690993020,19.94545296,143.01,142.98,2.65177335]
[1641690993421,6.99618708,143.0,142.98,2.65177335]
[1641690993622,6.99643182,142.99,142.98,2.65177335]
[1641690993821,6.99643182,142.99,142.97,2.65177335]
[1641690994422,12.95,143.01,142.97,2.65177335]
[1641690994622,12.95,143.01,142.95,2.65177335]
[1641690995023,12.95,143.01,142.96,4.0]
[1641690995222,12.95,143.01,142.97,4.0]
[1641690996026,12.95,143.01,142.96,14.82141445]
[1641690996225,12.95,143.01,142.96,18.82141445]
[1641690996826,19.94545296,143.01,142.96,18.82141445]
[1641690997026,12.99545296,143.01,142.96,14.82141445]
[1641690997526,12.99545296,143.01,142.97,2.65177335]
[1641690998127,12.99545296,143.01,142.97,6.65177335]
[1641690998327,12.99545296,143.01,142.96,17.4731878]
[1641690998529,13.567,143.01,142.96,17.4731878]
[1641690998727,6.99692135,142.98,142.96,17.4731878]
[1641690998928,6.99594235,143.0,142.97,4.0]
[1641691000029,6.99594235,143.0,142.98,2.65177335]
[1641691000430,6.99594235,143.0,142.99,4.0]
[1641691000729,6.0,143.01,142.98,2.65177335]
[1641691001131,6.0,143.01,143.0,4.0]
[1641691001733,6.0,143.01,142.98,2.65177335]
[1641691001930,6.0,143.01,143.0,4.0]
[1641691002331,6.0,143.01,143.0,6.65177335]
[1641691003931,6.0,143.01,143.0,21.4731878]
[1641691004832,6.0,143.01,143.0,6.65177335]
[1641691005832,27.66479,143.07,143.0,6.65177335]
[1641691006032,92.3,143.43,143.38,591.51537056]
[1641691006233,10.4,143.43,143.42,4.0]
[1641691006433,187.6687325,143.5,143.42,12.855]
[1641691006636,187.6687325,143.5,143.42,8.855]
[1641691006838,187.6687325,143.5,143.46,27.66479]
[1641691007037,187.6687325,143.5,143.47,4.0]
[1641691007333,187.6687325,143.5,143.48,4.0]
[1641691007334,139.93217262,143.5,143.48,4.0]
[1641691007534,115.97217262,143.5,143.46,27.66479]
[1641691007933,48.51583299,143.61,143.46,27.66479]
[1641691007934,6.9735007,143.52,143.46,27.66479]
[1641691008333,6.9735007,143.52,143.44,27.66479]
[1641691008734,27.66479,143.51,143.44,27.66479]
[1641691008934,6.97593303,143.47,143.33,4.0]
[1641691009334,20.0,143.49,143.26,1.743]
[1641691009538,6.97714983,143.44,143.32,4.0]
[1641691009737,1.743,143.43,143.29,205.2803]
[1641691009937,1.743,143.43,143.31,4.0]
[1641691010136,1.743,143.43,143.29,201.2803]
[1641691010338,6.97714983,143.44,143.33,4.0]
[1641691010538,6.97836706,143.42,143.33,4.0]
[1641691010737,27.66479,143.36,143.32,4.0]
[1641691010936,27.66479,143.36,143.28,27.66479]
[1641691011136,6.9827526,143.33,143.21,6.98080279]
[1641691011338,6.98348406,143.31,143.2,196.8015]
[1641691011538,8.0,143.35,143.21,10.98055914]
[1641691011739,8.0,143.35,143.23,4.0]
[1641691011938,27.66479,143.36,143.24,4.0]
[1641691012139,6.9820213,143.34,143.22,1.744]
[1641691012336,6.9820213,143.34,143.2,128.811]
[1641691012337,6.98324022,143.32,143.2,128.811]
[1641691012541,15.44124022,143.32,143.2,128.811]
[1641691012739,27.66479,143.3,143.21,27.66479]
[1641691012939,27.66479,143.3,143.24,6.97934115]
[1641691013139,27.66479,143.3,143.22,1.745]
[1641691013339,27.66479,143.3,143.21,36.39059279]
[1641691013540,27.66479,143.3,143.23,4.0]
[1641691013739,27.66479,143.3,143.25,4.0]
[1641691013939,35.33379,143.36,143.25,4.0]
[1641691014343,27.66479,143.36,143.25,4.0]
[1641691014542,27.66479,143.36,143.22,1.744]
[1641691014744,55.32958,143.36,143.23,4.0]
[1641691015144,55.32958,143.36,143.24,4.0]
[1641691015444,55.32958,143.36,143.22,1.744]
[1641691015646,63.45358,143.36,143.26,4.0]
[1641691016044,8.124,143.36,143.31,4.0]
[1641691016245,8.124,143.36,143.29,4.0]
[1641691016446,8.124,143.36,143.3,5.744]
[1641691016646,6.9790976,143.4,143.3,5.744]
[1641691016846,27.66479,143.37,143.29,27.66479]
[1641691017046,27.66479,143.37,143.28,1.744]
[1641691017247,6.98129014,143.36,143.25,4.0]
[1641691017446,6.98129014,143.36,143.21,1.744]
[1641691017647,6.98177756,143.35,143.24,4.0]
[1641691017848,13.47777756,143.35,143.24,4.0]
[1641691018047,13.47777756,143.35,143.27,4.0]
[1641691018248,13.47777756,143.35,143.24,4.0]
[1641691018547,13.47777756,143.35,143.21,1.744]
[1641691018548,6.9829964,143.32,143.21,1.744]
[1641691018747,6.9829964,143.32,143.2,128.811]
[1641691018748,27.66479,143.28,143.2,128.811]
[1641691018948,27.66479,143.28,143.2,4.0]
[1641691019349,27.66479,143.28,143.19,6.98153384]
[1641691019551,27.66479,143.28,143.2,1.745]
[1641691019753,27.66479,143.28,143.24,4.0]
[1641691019952,27.66479,143.28,143.19,6.98153384]
[1641691020151,27.66479,143.28,143.19,8.72653384]
[1641691020352,27.66479,143.28,143.21,4.0]
[1641691020754,27.66479,143.28,143.19,4.0]
[1641691020952,36.35079,143.28,143.18,1.745]
[1641691021153,36.35079,143.28,143.18,4.0]
[1641691022054,36.35079,143.28,143.17,27.66479]
[1641691022255,36.35079,143.28,143.18,1.745]
[1641691022653,36.35079,143.28,143.23,4.0]
[1641691022853,27.66479,143.24,143.18,1.745]
[1641691023853,27.66479,143.24,143.18,5.745]
[1641691024052,27.66479,143.24,143.18,1.745]
[1641691024254,27.66479,143.24,143.14,1.745]
[1641691024553,27.66479,143.24,143.17,4.0]
[1641691024756,27.66479,143.24,143.18,4.0]
[1641691024953,27.66479,143.24,143.16,29.40979]
[1641691025153,27.66479,143.24,143.19,4.0]
[1641691025354,27.66479,143.24,143.22,4.0]
[1641691025555,6.98104646,143.36,143.23,4.0]
[1641691025755,6.98104646,143.36,143.25,4.0]
[1641691025955,6.98104646,143.36,143.2,10.98104646]
[1641691025956,6.98104646,143.36,143.21,5.744]
[1641691026155,6.98104646,143.36,143.25,4.0]
[1641691026856,27.66479,143.35,143.25,31.66479]
[1641691027056,33.40679,143.35,143.25,27.66479]
[1641691027258,33.40679,143.35,143.26,4.0]
[1641691028256,33.40679,143.35,143.25,4.0]
[1641691028456,33.40679,143.35,143.23,4.0]
[1641691028856,27.66479,143.32,143.23,4.0]
[1641691029057,34.51179,143.32,143.22,27.66479]
[1641691029258,34.51179,143.32,143.23,4.0]
[1641691029458,34.51179,143.32,143.24,4.0]
[1641691031362,41.4947864,143.32,143.22,27.66479]
[1641691031560,41.4947864,143.32,143.21,64.8224]
[1641691032161,41.4947864,143.32,143.24,4.0]
[1641691032361,41.4947864,143.32,143.21,64.8224]
[1641691032562,41.4947864,143.32,143.25,4.0]
[1641691032763,34.51179,143.32,143.25,4.0]
[1641691032961,34.51179,143.32,143.23,27.66479]
[1641691033762,34.51179,143.32,143.25,4.0]
[1641691034362,34.51179,143.32,143.27,4.0]
[1641691034561,27.66479,143.32,143.23,27.66479]
[1641691034763,27.66479,143.32,143.27,4.0]
[1641691034963,27.66479,143.35,143.27,4.0]
[1641691035162,27.66479,143.35,143.26,27.66479]
[1641691035562,27.66479,143.35,143.3,4.0]
[1641691035762,27.66479,143.37,143.3,4.0]
[1641691036162,27.66479,143.37,143.27,8.72188012]
[1641691036566,27.66479,143.37,143.3,4.0]
[1641691036767,27.66479,143.37,143.28,4.0]
[1641691036967,42.09434914,143.37,143.28,4.0]
[1641691037567,2.23538813,143.36,143.26,29.40879]
[1641691037771,2.23538813,143.36,143.26,1.744]
[1641691038570,14.74480336,143.34,143.26,1.744]
[1641691038768,14.74480336,143.34,143.28,4.0]
[1641691038968,14.74480336,143.34,143.28,31.66479]
[1641691039270,14.74480336,143.34,143.28,27.66479]
[1641691039672,14.74480336,143.35,143.28,27.66479]
[1641691040371,14.74480336,143.34,143.28,27.66479]
[1641691041270,14.74480336,143.34,143.28,31.66479]
[1641691041470,14.74480336,143.34,143.28,27.66479]
[1641691041672,14.74480336,143.34,143.31,4.0]
[1641691042070,14.74480336,143.34,143.29,4.0]
[1641691042270,14.74480336,143.35,143.29,4.0]
[1641691042672,14.74480336,143.35,143.28,27.66479]
[1641691042872,22.00080336,143.35,143.28,27.66479]
[1641691043074,22.00080336,143.35,143.26,5.744]
[1641691043271,22.00080336,143.35,143.25,68.3592]
[1641691043473,22.00080336,143.35,143.28,4.0]
[1641691043674,14.74480336,143.33,143.28,4.0]
[1641691043874,14.74480336,143.33,143.29,4.0]
[1641691044478,14.74480336,143.33,143.26,1.744]
[1641691044677,14.74480336,143.33,143.27,4.0]
[1641691044877,2.23538813,143.33,143.26,31.66479]
[1641691045078,10.12038813,143.33,143.26,31.66479]
[1641691045681,10.12038813,143.33,143.26,4.0]
[1641691045881,2.23538813,143.32,143.25,64.3592]
[1641691046079,2.23538813,143.32,143.23,42.40959336]
[1641691046279,9.21838453,143.32,143.23,42.40959336]
[1641691046679,14.74480336,143.3,143.22,65.8307]
[1641691046881,27.66479,143.28,143.2,69.3266]
[1641691047180,27.66479,143.28,143.19,14.74480336]
[1641691047381,6.98689956,143.24,143.16,38.69566416]
[1641691047580,20.0,143.23,143.16,53.51796428]
[1641691047782,6.98885278,143.2,143.16,14.82230012]
[1641691047980,14.03085278,143.2,143.16,14.82230012]
[1641691048583,14.03085278,143.2,143.12,38.69566416]
[1641691048782,2.23538813,143.19,143.09,65.5086]
[1641691048983,27.66479,143.16,143.09,65.5086]
[1641691049181,34.53479,143.16,143.08,4.0]
[1641691049984,34.53479,143.16,143.07,27.66479]
[1641691050484,34.53479,143.16,143.08,4.0]
[1641691050886,34.53479,143.16,143.08,2.68530187]
[1641691051087,38.69566416,143.25,143.15,4.0]
[1641691051288,38.69566416,143.25,143.16,4.0]
[1641691051488,38.69566416,143.25,143.18,4.0]
[1641691051687,2.23519238,143.26,143.18,4.0]
[1641691051887,2.23519238,143.26,143.15,4.0]
[1641691052087,2.23519238,143.26,143.16,4.0]
[1641691052288,2.23519238,143.26,143.12,6.98519139]
[1641691052487,2.23519238,143.26,143.13,4.0]
[1641691052688,2.23519238,143.26,143.12,6.98519139]
[1641691052988,27.66479,143.24,143.13,31.66479]
[1641691053189,27.66479,143.24,143.13,27.66479]
[1641691053387,27.66479,143.24,143.17,4.0]
[1641691053588,27.66479,143.24,143.15,4.0]
[1641691054889,27.66479,143.24,143.13,27.66479]
[1641691055491,27.66479,143.24,143.17,4.0]
[1641691055891,27.66479,143.24,143.13,27.66479]
[1641691056091,17.64519139,143.28,143.14,1.745]
[1641691056892,17.64519139,143.28,143.15,4.0]
[1641691057091,27.66479,143.27,143.2,27.66479]
[1641691058094,27.66479,143.27,143.14,70.2001]
[1641691058296,6.98641143,143.25,143.14,68.4551]
[1641691058494,6.98689956,143.24,143.1,1.745]
[1641691058695,6.98885278,143.2,143.1,5.745]
[1641691058897,6.69,143.2,143.07,75.86163189]
[1641691059094,27.66479,143.19,143.1,27.66479]
[1641691059295,27.66479,143.19,143.12,4.0]
[1641691059495,27.66479,143.19,143.1,27.66479]
[1641691059896,27.66479,143.19,143.1,31.66479]
[1641691060396,27.66479,143.19,143.12,4.0]
[1641691060599,27.66479,143.19,143.1,27.66479]
[1641691060799,27.66479,143.19,143.07,70.62]
[1641691060800,27.66479,143.19,143.07,135.9507]
[1641691061002,27.66479,143.14,143.06,64.7786]
[1641691061201,33.37479,143.14,143.06,64.7786]
[1641691061799,33.37479,143.14,143.06,68.7786]
[1641691062101,33.37479,143.14,143.07,4.0]
[1641691062299,33.37479,143.14,143.06,64.7786]
[1641691062702,33.37479,143.14,143.07,4.0]
[1641691063203,33.37479,143.14,143.06,64.7786]
[1641691063602,5.71,143.14,143.1,4.0]
[1641691063802,8.171,143.17,143.06,70.5246]
[1641691064003,27.66479,143.19,143.06,70.5246]
[1641691064203,27.66479,143.19,143.1,4.0]
[1641691065104,27.66479,143.15,143.11,4.0]
[1641691065304,8.45,143.17,143.11,4.0]
[1641691065807,8.45,143.17,143.07,98.61619]
[1641691066009,8.45,143.17,143.15,4.0]
[1641691066407,8.45,143.17,143.14,4.0]
[1641691066605,10.72,143.2,143.1,5.746]
[1641691066807,10.72,143.2,143.1,1.746]
[1641691067008,10.72,143.2,143.15,4.0]
[1641691067208,10.72,143.2,143.12,31.66479]
[1641691067408,10.72,143.2,143.15,4.0]
[1641691067609,10.72,143.2,143.12,27.66479]
[1641691068007,27.66479,143.22,143.13,4.0]
[1641691068208,38.32479,143.22,143.12,27.66479]
[1641691068408,44.05179,143.22,143.12,27.66479]
[1641691069008,27.66479,143.18,143.12,27.66479]
[1641691069209,35.58679,143.18,143.12,31.66479]
[1641691069609,7.922,143.18,143.16,4.0]
[1641691069808,6.98567936,143.27,143.17,4.0]
[1641691070008,10.66,143.28,143.23,4.0]
[1641691070209,38.69566416,143.29,143.24,4.0]
[1641691070407,38.69566416,143.29,143.19,4.0]
[1641691070408,10.46,143.32,143.23,4.0]
[1641691070608,10.46,143.32,143.25,4.0]
[1641691070809,10.46,143.32,143.23,4.0]
[1641691071107,27.66479,143.29,143.22,27.66479]
[1641691071509,27.66479,143.31,143.22,27.66479]
[1641691071909,27.66479,143.31,143.25,4.0]
[1641691072109,27.66479,143.31,143.24,4.0]
[1641691072611,27.66479,143.31,143.25,4.0]
[1641691072811,6.0,143.34,143.25,6.97885407]
[1641691073011,6.0,143.34,143.28,4.0]
[1641691073411,76.62045416,143.37,143.27,27.66479]
[1641691073611,76.62045416,143.37,143.31,4.0]
[1641691073813,6.0,143.32,143.31,4.0]
[1641691075614,6.0,143.32,143.28,4.0]
[1641691075913,14.71,143.32,143.28,4.0]
[1641691076912,0.0001,143.32,143.31,4.0]
[1641691077113,6.984,143.36,143.29,4.0]
[1641691077511,6.984,143.36,143.27,27.66479]
[1641691077711,6.984,143.36,143.3,4.0]
[1641691078112,6.984,143.36,143.27,27.66479]
[1641691078312,37.92479,143.37,143.27,27.66479]
[1641691078512,37.92479,143.37,143.29,4.0]
[1641691079014,27.66479,143.37,143.31,4.0]
[1641691079311,27.66479,143.37,143.33,4.0]
[1641691079511,27.66479,143.37,143.27,97.98909]
[1641691079712,27.66479,143.37,143.31,4.0]
[1641691079915,27.66479,143.37,143.29,4.0]
[1641691080215,33.99479,143.37,143.29,4.0]
[1641691080415,33.99479,143.37,143.27,92.24509]
[1641691080615,2.23291633,143.36,143.27,64.5803]
[1641691080815,2.23291633,143.36,143.27,68.5803]
[1641691081015,2.23291633,143.36,143.27,64.5803]
[1641691081417,2.23291633,143.36,143.27,68.5803]
[1641691081818,2.23291633,143.36,143.28,4.0]
[1641691082016,2.23291633,143.36,143.27,64.5803]
[1641691082217,8.23291633,143.36,143.27,64.5803]
[1641691082421,8.23291633,143.36,143.3,4.0]
[1641691082624,8.23291633,143.36,143.27,71.55818012]
[1641691082823,8.23291633,143.36,143.28,5.744]
[1641691083021,8.23291633,143.36,143.33,4.0]
[1641691083222,6.0,143.36,143.28,1.744]
[1641691083422,12.18,143.36,143.28,4.0]
[1641691083922,12.18,143.36,143.27,64.5803]
[1641691084123,39.16129014,143.36,143.23,65.0363]
[1641691084320,6.9827526,143.33,143.21,4.0]
[1641691084524,6.98421567,143.3,143.21,4.0]
[1641691084722,14.22421567,143.3,143.21,4.0]
[1641691085126,27.66479,143.29,143.21,4.0]
[1641691086125,27.66479,143.29,143.22,4.0]
[1641691086727,7.24,143.3,143.19,68.0688]
[1641691086925,7.24,143.3,143.22,4.0]
[1641691087126,7.24,143.3,143.2,1.745]
[1641691087325,7.24,143.3,143.21,4.0]
[1641691088326,7.24,143.3,143.2,1.745]
[1641691088526,7.24,143.3,143.19,68.0688]
[1641691088727,7.24,143.3,143.22,4.0]
[1641691089128,27.66479,143.28,143.22,4.0]
[1641691089930,27.66479,143.28,143.19,68.0688]
[1641691090132,6.98592336,143.26,143.14,82.83426159]
[1641691090330,6.98763189,143.23,143.14,14.72846159]
[1641691090530,15.10463189,143.23,143.14,14.72846159]
[1641691091130,27.66479,143.19,143.14,14.72846159]
[1641691091330,34.58679,143.19,143.14,14.72846159]
[1641691091530,34.58679,143.19,143.11,69.7755]
[1641691092931,34.58679,143.19,143.14,4.0]
[1641691093131,6.922,143.19,143.13,27.66479]
[1641691093331,27.66479,143.22,143.14,1.746]
[1641691093932,27.66479,143.22,143.16,4.0]
[1641691094133,27.66479,143.22,143.18,4.0]
[1641691095834,27.66479,143.22,143.14,1.746]
[1641691096033,27.66479,143.24,143.2,4.0]
[1641691096234,27.66479,143.24,143.14,5.746]
[1641691096235,27.66479,143.24,143.15,70.8032]
[1641691096435,27.66479,143.24,143.16,1.745]
[1641691096634,95.98421567,143.3,143.16,1.745]
[1641691096934,10.54,143.28,143.21,4.0]
[1641691097134,38.20479,143.28,143.18,27.66479]
[1641691097736,38.20479,143.28,143.21,4.0]
[1641691097935,27.66479,143.28,143.18,27.66479]
[1641691098135,27.66479,143.28,143.22,4.0]
[1641691098934,27.66479,143.28,143.18,27.66479]
[1641691098935,27.66479,143.28,143.19,4.0]
[1641691099136,27.66479,143.3,143.26,4.0]
[1641691099335,14.72846159,143.31,143.26,8.806]
[1641691099536,14.72846159,143.31,143.29,4.0]
[1641691099736,96.6109216,143.44,143.3,8.0]
[1641691099936,69.6109216,143.44,143.4,4.0]
[1641691100538,69.6109216,143.44,143.41,4.0]
[1641691100738,6.9764197,143.46,143.4,4.0]
[1641691100739,2.22960795,143.45,143.4,4.0]
[1641691101141,2.22960795,143.45,143.41,4.0]
[1641691101340,2.22960795,143.45,143.43,4.0]
[1641691101739,2.22960795,143.45,143.4,27.66479]
[1641691101939,2.22960795,143.45,143.41,4.0]
[1641691102138,2.22960795,143.45,143.44,4.0]
[1641691102339,2.22960795,143.45,143.44,11.064]
[1641691102540,6.97082709,143.57,143.44,15.064]
[1641691102740,17.31082709,143.57,143.44,15.064]
[1641691102942,17.31082709,143.57,143.44,7.064]
[1641691103242,10.34,143.57,143.47,27.66479]
[1641691103444,10.34,143.57,143.48,4.0]
[1641691103639,10.34,143.57,143.47,27.66479]
[1641691103843,17.31107006,143.57,143.46,4.0]
[1641691104042,2.22384886,143.56,143.46,4.0]
[1641691104240,27.7882482,143.56,143.42,135.8481]
[1641691104441,6.97325756,143.52,143.4,38.63634605]
[1641691104841,6.97471665,143.49,143.4,4.0]
[1641691105041,13.75071665,143.49,143.35,140.5518]
[1641691105241,13.75071665,143.49,143.37,31.66479]
[1641691105242,27.66479,143.46,143.37,31.66479]
[1641691105441,40.78396636,143.46,143.37,27.66479]
[1641691105643,40.78396636,143.46,143.35,162.47459]
[1641691106242,2.22384886,143.45,143.35,162.47459]
[1641691106642,6.97788012,143.43,143.31,1.743]
[1641691106843,6.97958471,143.39,143.29,4.0]
[1641691107042,14.12758471,143.39,143.29,4.0]
[1641691107242,27.66479,143.37,143.29,4.0]
[1641691107442,27.66479,143.37,143.27,27.66479]
[1641691107643,27.66479,143.37,143.28,1.744]
[1641691107843,27.66479,143.37,143.29,4.0]
[1641691108445,27.66479,143.37,143.27,27.66479]
[1641691108645,27.66479,143.37,143.3,4.0]
[1641691109246,27.66479,143.37,143.27,55.32958]
[1641691109446,27.66479,143.37,143.3,4.0]
[1641691110049,27.66479,143.37,143.27,55.32958]
[1641691110852,33.66479,143.37,143.27,55.32958]
[1641691111450,33.66479,143.37,143.3,4.0]
[1641691112453,33.66479,143.37,143.27,55.32958]
[1641691112653,6.0,143.37,143.33,4.0]
[1641691112853,6.0,143.37,143.29,1.743]
[1641691113053,6.0,143.37,143.35,4.0]
[1641691113253,6.0,143.37,143.36,4.0]
[1641691113456,0.0001,143.37,143.36,4.0]
[1641691114255,0.0001,143.37,143.36,5.743]
[1641691114457,0.0001,143.37,143.36,16.71577133]
[1641691114656,0.0001,143.37,143.36,82.98737133]
[1641691114858,0.0001,143.37,143.36,88.56743002]
[1641691115060,17.25107006,143.57,143.38,5.57920389]
[1641691115356,17.25107006,143.57,143.5,4.0]
[1641691115556,2.21554269,143.55,143.52,4.0]
[1641691116357,27.66479,143.59,143.52,4.0]
[1641691116657,27.66479,143.59,143.49,27.66479]
[1641691116857,27.66479,143.59,143.5,4.0]
[1641691117256,27.66479,143.59,143.49,27.66479]
[1641691117457,27.66479,143.59,143.48,63.0369]
[1641691117658,6.97107006,143.57,143.45,4.0]
[1641691117858,6.97107006,143.57,143.42,4.0]
[1641691118060,14.33607006,143.57,143.41,6.97107006]
[1641691118259,14.33607006,143.57,143.45,4.0]
[1641691118661,7.365,143.57,143.45,4.0]
[1641691118860,7.365,143.57,143.43,8.71209828]
[1641691119160,2.21129897,143.56,143.46,4.0]
[1641691119361,27.66479,143.55,143.46,4.0]
[1641691119761,27.66479,143.55,143.45,27.66479]
[1641691120160,6.97277133,143.53,143.44,63.9086]
[1641691120360,13.08677133,143.53,143.44,63.9086]
[1641691120762,13.08677133,143.53,143.42,93.16249]
[1641691120964,13.08677133,143.53,143.42,97.16249]
[1641691121165,2.21104248,143.52,143.42,97.16249]
[1641691121364,29.87583248,143.52,143.42,93.16249]
[1641691122164,29.87583248,143.52,143.43,4.0]
[1641691122365,27.66479,143.52,143.43,4.0]
[1641691122565,27.66479,143.52,143.42,93.16249]
[1641691122765,27.66479,143.52,143.43,4.0]
[1641691123166,27.66479,143.52,143.42,93.16249]
[1641691123768,27.66479,143.52,143.43,4.0]
[1641691124668,33.66479,143.52,143.43,4.0]
[1641691124867,33.66479,143.52,143.48,4.0]
[1641691126172,2.21772756,143.51,143.48,4.0]
[1641691126571,1.756e-05,143.52,143.45,4.0]
[1641691126772,97.76941013,143.65,143.51,8.0]
[1641691126970,97.76941013,143.65,143.62,4.0]
[1641691127170,91.76941013,143.65,143.62,5.688]
[1641691127372,91.76941013,143.65,143.64,55.32958]
[1641691127971,10.68,143.72,143.64,59.32958]
[1641691128170,10.68,143.72,143.64,55.32958]